[Event "12th National Schools-ch 2024"]
[Site "Gyan Bhawan Patna"]
[Date "2024.02.08"]
[Round "6.6"]
[White "Mahir Taneja"]
[Black "Vandan Alankar Sawai"]
[Result "1/2-1/2"]
[ECO "C07"]
[WhiteElo "1598"]
[BlackElo "1721"]
[Annotator "NA RC"]
[PlyCount "133"]
[EventDate "2024.02.05"]
[EventCountry "IND"]
[SourceTitle "playchess.com"]
[Source "ChessBase"]
[SourceQuality "1"]
[TimeControl "5400+30"]

1. e4 {[%emt 0:00:33]} e6 {[%emt 0:00:20]} 2. d4 {[%emt 0:00:11]} d5 {[%emt 0:00:15]} 3. Nd2 {[%emt 0:00:06]} c5 {[%emt 0:00:08]} 4. Ngf3 {[%emt 0:00:07]} cxd4 {[%emt 0:00:36]} 5. Nxd4 {[%emt 0:00:08]} Nc6 {[%emt 0:00:06]} 6. Nxc6 {[%emt 0:07:30]} bxc6 {[%emt 0:00:16]} 7. exd5 {[%emt 0:00:20]} cxd5 {[%emt 0:01:22]} 8. Nf3 {[%emt 0:06:00]} Nf6 {[%emt 0:00:38]} 9. c4 {[%emt 0:02:21]} Bc5 {[%emt 0:04:11]} 10. cxd5 {[%emt 0:01:18]} Qb6 {[%emt 0:02:44]} 11. Qe2 {[%emt 0:01:40]} O-O {[%emt 0:00:46]} 12. Be3 {[%emt 0:09:59]} exd5 {[%emt 0:01:57]} 13. Qb5 {[%emt 0:01:31]} Bxe3 {[%emt 0:00:19]} 14. fxe3 {[%emt 0:00:32]} Qxe3+ {[%emt 0:00:02]} 15. Be2 {[%emt 0:00:55]} Re8 {[%emt 0:00:09]} 16. Rd1 {[%emt 0:00:49]} Rb8 {[%emt 0:00:43]} 17. Qd3 {[%emt 0:00:14]} Rxb2 {[%emt 0:02:03]} 18. Qxe3 {[%emt 0:00:09]} Rxe3 {[%emt 0:00:04]} 19. Rd2 {[%emt 0:00:07]} Rb1+ {[%emt 0:00:14]} 20. Rd1 {[%emt 0:00:05]} Rxd1+ {[%emt 0:00:18]} 21. Kxd1 {[%emt 0:00:07]} Ne4 {[%emt 0:00:02]} 22. Re1 {[%emt 0:00:25]} Nc3+ {[%emt 0:04:35]} 23. Kd2 {[%emt 0:00:07]} Rxe2+ {[%emt 0:00:04]} 24. Kxc3 {[%emt 0:00:06]} Rxe1 {[%emt 0:00:32]} 25. Nxe1 {[%emt 0:00:04]} f6 {[%emt 0:00:38]} 26. Kd4 {[%emt 0:00:07]} Kf7 {[%emt 0:00:07]} 27. Nd3 {[%emt 0:00:23]} g5 {[%emt 0:04:41]} 28. Nb4 {[%emt 0:00:34]} Bb7 {[%emt 0:00:10]} 29. Nxd5 {[%emt 0:01:33]} Ke6 {[%emt 0:00:22]} 30. Ne3 {[%emt 0:00:50]} f5 {[%emt 0:00:07]} 31. g3 {[%emt 0:00:43]} f4 {[%emt 0:01:15]} 32. gxf4 {[%emt 0:00:09]} gxf4 {[%emt 0:00:03]} 33. Ng4 {[%emt 0:00:06]} Kf5 {[%emt 0:01:51]} 34. Nf2 {[%emt 0:00:04]} Bc8 {[%emt 0:00:50]} 35. Ne4 {[%emt 0:17:37]} Be6 {[%emt 0:03:23]} 36. a3 {[%emt 0:00:13]} h6 {[%emt 0:03:27]} 37. Nf2 {[%emt 0:00:24]} Bb3 {[%emt 0:00:24]} 38. Kd3 {[%emt 0:00:49]} Bd5 {[%emt 0:00:29]} 39. Kd4 {[%emt 0:00:08]} Be6 {[%emt 0:00:07]} 40. Nd3 {[%emt 0:05:16]} Bd7 {[%emt 0:00:14]} 41. Nf2 {[%emt 0:01:14]} Bc8 {[%emt 0:00:50]} 42. Kd5 {[%emt 0:02:43]} Ba6 {[%emt 0:00:23]} 43. Kd4 {[%emt 0:00:27]} Bb7 {[%emt 0:00:56]} 44. Kd3 {[%emt 0:00:13]} Bc6 {[%emt 0:00:25]} 45. Kd4 {[%emt 0:00:21]} Bf3 {[%emt 0:00:08]} 46. Nd3 {[%emt 0:00:43]} Be4 {[%emt 0:00:42]} 47. Nf2 {[%emt 0:00:07]} Bb1 {[%emt 0:00:10]} 48. Kd5 {[%emt 0:00:44]} Kg5 {[%emt 0:00:30]} 49. Ke5 {[%emt 0:00:19]} f3 {[%emt 0:02:49]} 50. Nh3+ {[%emt 0:17:41]} Kh4 {[%emt 0:00:10]} 51. Nf2 {[%emt 0:00:11]} Kg5 {[%emt 0:00:21]} 52. Nh3+ {[%emt 0:00:03]} Kh4 {[%emt 0:00:15]} 53. Nf2 {[%emt 0:00:03]} Bg6 {[%emt 0:00:22]} 54. Kf4 {[%emt 0:00:24]} Bh5 {[%emt 0:00:08]} 55. Kf5 {[%emt 0:00:27]} Be8 {[%emt 0:00:08]} 56. Kf4 {[%emt 0:00:05]} Bc6 {[%emt 0:00:04]} 57. Kf5 {[%emt 0:00:05]} Kh5 {[%emt 0:00:40]} 58. Nd1 {[%emt 0:00:26]} Ba4 {[%emt 0:00:37]} 59. Nf2 {[%emt 0:00:05]} Bd7+ {[%emt 0:00:18]} 60. Kf4 {[%emt 0:00:05]} Bc6 {[%emt 0:00:04]} 61. Kf5 {[%emt 0:00:07]} Bb7 {[%emt 0:00:39]} 62. Nd1 {[%emt 0:00:08]} Bd5 {[%emt 0:00:11]} 63. Nf2 {[%emt 0:00:05]} Bc4 {[%emt 0:00:07]} 64. Nh1 {[%emt 0:00:46]} Be2 {[%emt 0:00:27]} 65. Nf2 {[%emt 0:00:06]} Bf1 {[%emt 0:00:06]} 66. Kf4 {[%emt 0:00:19]} Be2 {[%emt 0:00:09]} 67. Ke4 {[%emt 0:31:43]} 1/2-1/2

[Event "12th National Schools-ch 2024"]
[Site "Gyan Bhawan Patna"]
[Date "2024.02.08"]
[Round "6.7"]
[White "Singh Myra"]
[Black "Gade Sharanya"]
[Result "0-1"]
[ECO "B70"]
[WhiteElo "1511"]
[BlackElo "1531"]
[Annotator "NA RC"]
[PlyCount "112"]
[EventDate "2024.02.05"]
[EventCountry "IND"]
[SourceTitle "playchess.com"]
[Source "ChessBase"]
[SourceQuality "1"]
[TimeControl "5400+30"]

1. e4 {[%emt 0:00:02]} c5 {[%emt 0:00:03]} 2. Nf3 {[%emt 0:00:05]} Nc6 {[%emt 0:00:05]} 3. d4 {[%emt 0:00:03]} cxd4 {[%emt 0:00:04]} 4. Nxd4 {[%emt 0:00:02]} g6 {[%emt 0:00:06]} 5. Nc3 {[%emt 0:00:04]} Bg7 {[%emt 0:00:05]} 6. Nb3 {[%emt 0:00:04]} Nf6 {[%emt 0:00:07]} 7. Be2 {[%emt 0:00:05]} O-O {[%emt 0:00:09]} 8. O-O {[%emt 0:00:03]} d6 {[%emt 0:00:32]} 9. Re1 {[%emt 0:00:05]} Be6 {[%emt 0:01:28]} 10. Bf1 {[%emt 0:00:07]} Rc8 {[%emt 0:04:49]} 11. Nd5 {[%emt 0:00:32]} Bxd5 {[%emt 0:01:52]} 12. exd5 {[%emt 0:00:09]} Nb4 {[%emt 0:00:14]} 13. c4 {[%emt 0:00:38]} a5 {[%emt 0:04:29]} 14. a3 {[%emt 0:05:13]} Na6 {[%emt 0:00:20]} 15. Bg5 {[%emt 0:01:12]} h6 {[%emt 0:01:42]} 16. Be3 {[%emt 0:01:47]} a4 {[%emt 0:03:34]} 17. Nd4 {[%emt 0:01:49]} Nc5 {[%emt 0:00:06]} 18. Rb1 {[%emt 0:03:30]} e5 {[%emt 0:14:55]} 19. dxe6 {[%emt 0:03:56]} fxe6 {[%emt 0:00:24]} 20. Nb5 {[%emt 0:01:35]} d5 {[%emt 0:01:28]} 21. Nc3 {[%emt 0:23:40]} Nfe4 {[%emt 0:13:15]} 22. Nxe4 {[%emt 0:04:50]} Nxe4 {[%emt 0:00:08]} 23. cxd5 {[%emt 0:20:50]} Qxd5 {[%emt 0:27:19]} 24. Qxa4 {[%emt 0:06:55]} Nxf2 {[%emt 0:03:39]} 25. Be2 {[%emt 0:23:10]} Nd3 {[%emt 0:12:57]} 26. Bxd3 {[%emt 0:01:37]} Qxd3 {[%emt 0:00:08]} 27. Qg4 {[%emt 0:01:06]} Qf5 {[%emt 0:00:32]} 28. Qb4 {[%emt 0:00:12]} b5 {[%emt 0:00:55]} 29. Rf1 {[%emt 0:00:55]} Qe5 {[%emt 0:00:10]} 30. Rxf8+ {[%emt 0:00:25]} Rxf8 {[%emt 0:01:09]} 31. Bf2 {[%emt 0:00:39]} Rxf2 {[%emt 0:00:29]} 32. Kxf2 {[%emt 0:00:28]} Qf5+ {[%emt 0:00:05]} 33. Ke2 {[%emt 0:00:08]} Qxb1 {[%emt 0:00:06]} 34. Qxb5 {[%emt 0:00:09]} Qxb2+ {[%emt 0:00:05]} 35. Qxb2 {[%emt 0:00:04]} Bxb2 {[%emt 0:00:05]} 36. a4 {[%emt 0:00:02]} Bc3 {[%emt 0:00:08]} 37. Kd3 {[%emt 0:00:05]} Be1 {[%emt 0:00:11]} 38. Ke4 {[%emt 0:00:13]} Kf7 {[%emt 0:00:05]} 39. g4 {[%emt 0:00:20]} Kf6 {[%emt 0:00:15]} 40. h3 {[%emt 0:00:07]} g5 {[%emt 0:00:26]} 41. Kd4 {[%emt 0:00:08]} e5+ {[%emt 0:00:08]} 42. Kd5 {[%emt 0:00:25]} Ba5 {[%emt 0:00:12]} 43. Kc4 {[%emt 0:00:20]} Ke6 {[%emt 0:00:07]} 44. Kb5 {[%emt 0:00:23]} Be1 {[%emt 0:00:08]} 45. Kc5 {[%emt 0:00:21]} Bd2 {[%emt 0:00:06]} 46. Kc4 {[%emt 0:00:14]} e4 {[%emt 0:00:17]} 47. Kd4 {[%emt 0:00:14]} e3 {[%emt 0:00:07]} 48. Kd3 {[%emt 0:00:05]} Kd5 {[%emt 0:00:09]} 49. Ke2 {[%emt 0:00:15]} Kc4 {[%emt 0:00:08]} 50. a5 {[%emt 0:00:10]} Kb5 {[%emt 0:00:04]} 51. Kd3 {[%emt 0:00:05]} Kxa5 {[%emt 0:00:06]} 52. Kc2 {[%emt 0:00:09]} Kb5 {[%emt 0:00:08]} 53. Kd3 {[%emt 0:00:05]} Kc5 {[%emt 0:00:05]} 54. Kc2 {[%emt 0:00:06]} Kd4 {[%emt 0:00:05]} 55. Kd1 {[%emt 0:00:10]} Kd3 {[%emt 0:00:06]} 56. h4 {[%emt 0:00:06]} e2# {[%emt 0:00:03]} 0-1

[Event "12th National Schools-ch 2024"]
[Site "Gyan Bhawan Patna"]
[Date "2024.02.08"]
[Round "6.8"]
[White "Rahul Kumar, Pune"]
[Black "Arnav Agrawal"]
[Result "0-1"]
[ECO "B07"]
[WhiteElo "2242"]
[BlackElo "1610"]
[Annotator "RC"]
[PlyCount "124"]
[EventDate "2024.02.05"]
[EventCountry "IND"]
[SourceTitle "playchess.com"]
[Source "ChessBase"]
[SourceQuality "1"]
[TimeControl "5400+30"]

1. d4 {[%emt 0:00:02]} Nf6 {[%emt 0:00:09]} 2. Nf3 {[%emt 0:00:04]} g6 {[%emt 0:00:15]} 3. Nbd2 {[%emt 0:00:05]} Bg7 {[%emt 0:00:53]} 4. e4 {[%emt 0:00:07]} d6 {[%emt 0:00:06]} 5. Bd3 {[%emt 0:00:03]} O-O {[%emt 0:00:12]} 6. c3 {[%emt 0:00:03]} a6 {[%emt 0:01:50]} 7. a4 {[%emt 0:01:39]} Bg4 {[%emt 0:01:53]} 8. O-O {[%emt 0:01:07]} Nbd7 {[%emt 0:00:42]} 9. h3 {[%emt 0:04:41]} Bxf3 {[%emt 0:00:26]} 10. Nxf3 {[%emt 0:00:19]} c5 {[%emt 0:00:46]} 11. Qe2 {[%emt 0:08:28]} e6 {[%emt 0:02:33]} 12. Be3 {[%emt 0:21:25]} Qc7 {[%emt 0:02:19]} 13. dxc5 {[%emt 0:09:16]} Nxc5 {[%emt 0:02:22]} 14. Bxc5 {[%emt 0:00:30]} dxc5 {[%emt 0:01:57]} 15. Rfd1 {[%emt 0:01:57]} Rac8 {[%emt 0:03:39]} 16. Nd2 {[%emt 0:04:00]} Nd7 {[%emt 0:07:02]} 17. Nc4 {[%emt 0:07:36]} b5 {[%emt 0:11:34]} 18. axb5 {[%emt 0:00:03]} axb5 {[%emt 0:00:07]} 19. Ne3 {[%emt 0:03:24]} c4 {[%emt 0:02:57]} 20. Bc2 {[%emt 0:00:07]} Nc5 {[%emt 0:00:29]} 21. Ng4 {[%emt 0:08:07]} h5 {[%emt 0:10:46]} 22. Nh2 {[%emt 0:00:16]} Rb8 {[%emt 0:01:26]} 23. Nf3 {[%emt 0:01:12]} Rfc8 {[%emt 0:03:44]} 24. Nd4 {[%emt 0:08:00]} e5 {[%emt 0:06:04]} 25. Nf3 {[%emt 0:00:55]} Ne6 {[%emt 0:00:15]} 26. Qe3 {[%emt 0:04:19]} Rb7 {[%emt 0:07:00]} 27. b4 {[%emt 0:07:43]} Kh7 {[%emt 0:09:18]} 28. Ng5+ {[%emt 0:01:41]} Nxg5 {[%emt 0:00:13]} 29. Qxg5 {[%emt 0:00:02]} Bh6 {[%emt 0:00:39]} 30. Qf6 {[%emt 0:01:51]} Rb6 {[%emt 0:01:13]} 31. Qf3 {[%emt 0:06:58]} Kg7 {[%emt 0:01:31]} 32. Rd5 {[%emt 0:00:00]} Rd8 {[%emt 0:02:34]} 33. Rad1 {[%emt 0:00:00]} Rbd6 {[%emt 0:02:02]} 34. Qe2 {[%emt 0:00:00]} Rxd5 {[%emt 0:03:02]} 35. exd5 {[%emt 0:00:00]} Qd6 {[%emt 0:00:47]} 36. g3 {[%emt 0:01:35]} f5 {[%emt 0:00:18]} 37. g4 {[%emt 0:00:25]} hxg4 {[%emt 0:01:40]} 38. hxg4 {[%emt 0:00:02]} e4 {[%emt 0:00:25]} 39. Kg2 {[%emt 0:01:25]} Rg8 {[%emt 0:01:12]} 40. f3 {[%emt 0:00:23]} e3 {[%emt 0:02:34]} 41. Rd4 {[%emt 0:00:38]} Rh8 {[%emt 0:00:55]} 42. gxf5 {[%emt 0:00:19]} Bf4 {[%emt 0:00:12]} 43. Kg1 {[%emt 0:00:37]} Bh2+ {[%emt 0:01:42]} 44. Kf1 {[%emt 0:00:08]} Bg3 {[%emt 0:00:14]} 45. Qxe3 {[%emt 0:00:41]} Rh1+ {[%emt 0:00:06]} 46. Kg2 {[%emt 0:00:19]} Rh2+ {[%emt 0:00:40]} 47. Kf1 {[%emt 0:00:02]} Rf2+ {[%emt 0:01:23]} 48. Kg1 {[%emt 0:01:19]} Rxc2 {[%emt 0:00:17]} 49. Rd2 {[%emt 0:00:34]} Rxd2 {[%emt 0:01:38]} 50. Qxd2 {[%emt 0:00:02]} gxf5 {[%emt 0:00:01]} 51. Qg5+ {[%emt 0:00:37]} Qg6 {[%emt 0:00:52]} 52. Qe7+ {[%emt 0:00:02]} Kh6 {[%emt 0:00:47]} 53. Qf8+ {[%emt 0:00:13]} Kh5 {[%emt 0:00:10]} 54. Qh8+ {[%emt 0:00:11]} Qh6 {[%emt 0:00:12]} 55. Qe8+ {[%emt 0:00:08]} Kh4 {[%emt 0:00:10]} 56. Qe2 {[%emt 0:01:36]} Qc1+ {[%emt 0:00:21]} 57. Kg2 {[%emt 0:00:02]} Qe1 {[%emt 0:00:16]} 58. Qc2 {[%emt 0:01:15]} Bf4 {[%emt 0:02:00]} 59. Qxf5 {[%emt 0:00:42]} Qe2+ {[%emt 0:00:06]} 60. Kg1 {[%emt 0:00:04]} Be3+ {[%emt 0:00:12]} 61. Kh1 {[%emt 0:00:10]} Qf1+ {[%emt 0:00:24]} 62. Kh2 {[%emt 0:00:10]} Qd3 {[%emt 0:09:58]} 0-1

[Event "12th National Schools-ch 2024"]
[Site "Gyan Bhawan Patna"]
[Date "2024.02.08"]
[Round "6.9"]
[White "Arshiya Das"]
[Black "Sindhusree K"]
[Result "1/2-1/2"]
[ECO "B90"]
[WhiteElo "1667"]
[BlackElo "1445"]
[Annotator "NA RC"]
[PlyCount "133"]
[EventDate "2024.02.05"]
[EventCountry "IND"]
[SourceTitle "playchess.com"]
[Source "ChessBase"]
[SourceQuality "1"]
[TimeControl "5400+30"]

1. e4 {[%emt 0:00:04]} c5 {[%emt 0:00:10]} 2. Nf3 {[%emt 0:00:05]} d6 {[%emt 0:00:03]} 3. d4 {[%emt 0:00:06]} cxd4 {[%emt 0:00:05]} 4. Nxd4 {[%emt 0:00:07]} Nf6 {[%emt 0:00:04]} 5. Nc3 {[%emt 0:00:05]} a6 {[%emt 0:00:03]} 6. Qd3 {[%emt 0:00:06]} Nbd7 {[%emt 0:05:37]} 7. h3 {[%emt 0:04:12]} Nc5 {[%emt 0:00:53]} 8. Qe3 {[%emt 0:01:15]} e5 {[%emt 0:01:32]} 9. Nf3 {[%emt 0:01:19]} b5 {[%emt 0:01:43]} 10. a3 {[%emt 0:00:59]} Bb7 {[%emt 0:02:20]} 11. Bd3 {[%emt 0:00:41]} Be7 {[%emt 0:00:05]} 12. O-O {[%emt 0:01:20]} O-O {[%emt 0:00:44]} 13. Qe2 {[%emt 0:11:42]} Qc7 {[%emt 0:01:40]} 14. Bd2 {[%emt 0:01:48]} Rfe8 {[%emt 0:01:29]} 15. Nh2 {[%emt 0:04:21]} d5 {[%emt 0:04:53]} 16. f3 {[%emt 0:02:10]} Ne6 {[%emt 0:06:33]} 17. g3 {[%emt 0:09:19]} Rad8 {[%emt 0:11:05]} 18. Be1 {[%emt 0:04:28]} Bc5+ {[%emt 0:09:57]} 19. Kh1 {[%emt 0:01:11]} Bd4 {[%emt 0:05:52]} 20. exd5 {[%emt 0:06:06]} Nxd5 {[%emt 0:00:18]} 21. Nxd5 {[%emt 0:00:15]} Bxd5 {[%emt 0:00:06]} 22. c3 {[%emt 0:00:52]} Bb6 {[%emt 0:01:11]} 23. Qc2 {[%emt 0:13:38]} h6 {[%emt 0:02:23]} 24. Bf2 {[%emt 0:07:33]} Ng5 {[%emt 0:13:50]} 25. Bxb6 {[%emt 0:12:02]} Qxb6 {[%emt 0:00:02]} 26. Rae1 {[%emt 0:00:56]} e4 {[%emt 0:30:52]} 27. fxe4 {[%emt 0:03:52]} Nxe4 {[%emt 0:00:00]} 28. Rxe4 {[%emt 0:02:52]} Qc6 {[%emt 0:00:00]} 29. Qf2 {[%emt 0:02:49]} Bxe4+ {[%emt 0:00:00]} 30. Bxe4 {[%emt 0:00:02]} Qxe4+ {[%emt 0:00:00]} 31. Nf3 {[%emt 0:00:29]} Qe2 {[%emt 0:00:00]} 32. Kg2 {[%emt 0:00:09]} Rd3 {[%emt 0:00:00]} 33. Nd4 {[%emt 0:00:18]} Qxf2+ {[%emt 0:00:00]} 34. Rxf2 {[%emt 0:00:02]} g6 {[%emt 0:00:00]} 35. Nc2 {[%emt 0:00:47]} Red8 {[%emt 0:00:00]} 36. Nd4 {[%emt 0:00:33]} Kg7 {[%emt 0:00:00]} 37. Re2 {[%emt 0:00:25]} Kf8 {[%emt 0:00:00]} 38. Rf2 {[%emt 0:00:48]} Re8 {[%emt 0:00:00]} 39. Nc2 {[%emt 0:00:40]} Rd6 {[%emt 0:00:00]} 40. Nd4 {[%emt 0:00:29]} Kg7 {[%emt 0:00:00]} 41. Rd2 {[%emt 0:01:00]} Red8 {[%emt 0:00:00]} 42. Re2 {[%emt 0:00:13]} Kf6 {[%emt 0:00:00]} 43. Kf2 {[%emt 0:01:15]} Rc8 {[%emt 0:00:00]} 44. Kg2 {[%emt 0:01:31]} Rd5 {[%emt 0:00:00]} 45. Nf3 {[%emt 0:01:51]} a5 {[%emt 0:00:00]} 46. Kf2 {[%emt 0:00:48]} Rcd8 {[%emt 0:02:49]} 47. Nd4 {[%emt 0:00:24]} b4 {[%emt 0:00:56]} 48. axb4 {[%emt 0:00:43]} axb4 {[%emt 0:00:25]} 49. Nc6 {[%emt 0:00:52]} R8d6 {[%emt 0:01:05]} 50. Nxb4 {[%emt 0:00:03]} Rd2 {[%emt 0:00:07]} 51. Nc2 {[%emt 0:00:45]} Rxe2+ {[%emt 0:00:29]} 52. Kxe2 {[%emt 0:00:01]} Ke5 {[%emt 0:00:51]} 53. Ne3 {[%emt 0:01:55]} Ke4 {[%emt 0:00:33]} 54. Nc4 {[%emt 0:00:15]} Re6 {[%emt 0:00:23]} 55. Nd2+ {[%emt 0:00:29]} Kd5+ {[%emt 0:00:06]} 56. Kd3 {[%emt 0:00:43]} f5 {[%emt 0:00:26]} 57. b4 {[%emt 0:00:15]} g5 {[%emt 0:00:19]} 58. c4+ {[%emt 0:00:23]} Kc6 {[%emt 0:00:25]} 59. Nf3 {[%emt 0:00:08]} Kb7 {[%emt 0:00:42]} 60. Nd4 {[%emt 0:00:16]} Re5 {[%emt 0:00:02]} 61. Nf3 {[%emt 0:00:10]} Re8 {[%emt 0:01:12]} 62. Kd4 {[%emt 0:02:46]} f4 {[%emt 0:00:27]} 63. gxf4 {[%emt 0:00:05]} gxf4 {[%emt 0:00:03]} 64. h4 {[%emt 0:00:03]} Re3 {[%emt 0:00:20]} 65. Nd2 {[%emt 0:00:32]} h5 {[%emt 0:01:57]} 66. Ne4 {[%emt 0:01:18]} Re2 {[%emt 0:01:00]} 67. Ng5 {[%emt 0:00:26]} 1/2-1/2

[Event "12th National Schools-ch 2024"]
[Site "Gyan Bhawan Patna"]
[Date "2024.02.08"]
[Round "6.10"]
[White "Pavan Karthikeya Varma Gunturi"]
[Black "Shadhursshaan R"]
[Result "1/2-1/2"]
[ECO "B00"]
[WhiteElo "1590"]
[BlackElo "2058"]
[Annotator "RC"]
[PlyCount "87"]
[EventDate "2024.02.05"]
[EventCountry "IND"]
[SourceTitle "playchess.com"]
[Source "ChessBase"]
[SourceQuality "1"]
[TimeControl "5400+30"]

1. e4 {[%emt 0:00:09]} b6 {[%emt 0:00:06]} 2. d4 {[%emt 0:00:37]} Bb7 {[%emt 0:00:03]} 3. Nc3 {[%emt 0:00:41]} e6 {[%emt 0:00:02]} 4. Bd3 {[%emt 0:02:58]} Nf6 {[%emt 0:00:10]} 5. Be3 {[%emt 0:06:44]} Bb4 {[%emt 0:00:06]} 6. f3 {[%emt 0:01:19]} d5 {[%emt 0:00:27]} 7. e5 {[%emt 0:04:27]} Nfd7 {[%emt 0:02:21]} 8. a3 {[%emt 0:01:05]} Be7 {[%emt 0:00:07]} 9. Nce2 {[%emt 0:01:52]} c5 {[%emt 0:00:14]} 10. c3 {[%emt 0:00:17]} f5 {[%emt 0:02:31]} 11. f4 {[%emt 0:03:47]} Nc6 {[%emt 0:02:55]} 12. Nf3 {[%emt 0:00:22]} c4 {[%emt 0:00:06]} 13. Bc2 {[%emt 0:00:18]} b5 {[%emt 0:00:09]} 14. Ng3 {[%emt 0:07:20]} Qb6 {[%emt 0:01:21]} 15. Ng5 {[%emt 0:02:17]} Bxg5 {[%emt 0:00:56]} 16. Qh5+ {[%emt 0:00:40]} g6 {[%emt 0:00:14]} 17. Qxg5 {[%emt 0:00:53]} Qd8 {[%emt 0:06:51]} 18. Qxd8+ {[%emt 0:06:47]} Kxd8 {[%emt 0:04:02]} 19. Kd2 {[%emt 0:05:13]} a5 {[%emt 0:00:13]} 20. h4 {[%emt 0:04:46]} Kc7 {[%emt 0:00:11]} 21. Ne2 {[%emt 0:06:23]} h5 {[%emt 0:00:51]} 22. Ng1 {[%emt 0:01:26]} Rhb8 {[%emt 0:00:29]} 23. Nf3 {[%emt 0:02:37]} Nb6 {[%emt 0:00:09]} 24. Ng5 {[%emt 0:01:09]} Bc8 {[%emt 0:00:10]} 25. Nf7 {[%emt 0:01:26]} Bd7 {[%emt 0:00:07]} 26. Nd6 {[%emt 0:01:23]} Ne7 {[%emt 0:00:12]} 27. Rhc1 {[%emt 0:02:45]} Nbc8 {[%emt 0:01:11]} 28. Nxc8 {[%emt 0:02:21]} Nxc8 {[%emt 0:00:03]} 29. Bd1 {[%emt 0:02:33]} Ra7 {[%emt 0:01:37]} 30. Ra2 {[%emt 0:03:51]} Rab7 {[%emt 0:01:06]} 31. Ke1 {[%emt 0:06:36]} b4 {[%emt 0:01:20]} 32. axb4 {[%emt 0:01:55]} axb4 {[%emt 0:00:01]} 33. b3 {[%emt 0:01:19]} cxb3 {[%emt 0:03:08]} 34. Bxb3 {[%emt 0:00:54]} Kd8 {[%emt 0:01:11]} 35. c4 {[%emt 0:02:18]} dxc4 {[%emt 0:00:11]} 36. Rxc4 {[%emt 0:01:14]} Ne7 {[%emt 0:00:11]} 37. Rc5 {[%emt 0:01:32]} Rb5 {[%emt 0:02:11]} 38. Rxb5 {[%emt 0:04:57]} Rxb5 {[%emt 0:00:12]} 39. Ra8+ {[%emt 0:01:28]} Kc7 {[%emt 0:00:01]} 40. Ra7+ {[%emt 0:00:28]} Kc8 {[%emt 0:00:57]} 41. Ba4 {[%emt 0:01:04]} Rd5 {[%emt 0:00:02]} 42. Bb3 {[%emt 0:00:41]} Kb8 {[%emt 0:00:26]} 43. Bxd5 {[%emt 0:02:09]} Kxa7 {[%emt 0:00:02]} 44. Bxe6 {[%emt 0:00:27]} 1/2-1/2

[Event "12th National Schools-ch 2024"]
[Site "Gyan Bhawan Patna"]
[Date "2024.02.09"]
[Round "8.1"]
[White "Divi Bijesh"]
[Black "Nakshatra Gumudavelly"]
[Result "1-0"]
[ECO "C77"]
[WhiteElo "1296"]
[BlackElo "1044"]
[Annotator "NA RC"]
[PlyCount "133"]
[EventDate "2024.02.05"]
[EventCountry "IND"]
[SourceTitle "playchess.com"]
[Source "ChessBase"]
[SourceQuality "1"]
[TimeControl "5400+30"]

1. e4 {[%emt 0:00:10]} e5 {[%emt 0:05:39]} 2. Nf3 {[%emt 0:00:09]} Nc6 {[%emt 0:02:26]} 3. Bb5 {[%emt 0:00:11]} a6 {[%emt 0:03:04]} 4. Ba4 {[%emt 0:00:09]} Nf6 {[%emt 0:01:39]} 5. d3 {[%emt 0:00:11]} d6 {[%emt 0:02:43]} 6. c3 {[%emt 0:00:21]} g6 {[%emt 0:03:36]} 7. O-O {[%emt 0:03:41]} Bg7 {[%emt 0:07:48]} 8. Re1 {[%emt 0:00:36]} O-O {[%emt 0:02:45]} 9. Nbd2 {[%emt 0:00:20]} Bd7 {[%emt 0:02:27]} 10. Nf1 {[%emt 0:00:45]} Nh5 {[%emt 0:05:24]} 11. Ng3 {[%emt 0:02:42]} Nxg3 {[%emt 0:03:39]} 12. hxg3 {[%emt 0:00:10]} f5 {[%emt 0:07:55]} 13. Bb3+ {[%emt 0:00:16]} Kh8 {[%emt 0:05:23]} 14. Ng5 {[%emt 0:01:11]} Qf6 {[%emt 0:06:15]} 15. exf5 {[%emt 0:00:54]} Qxf5 {[%emt 0:05:45]} 16. Be3 {[%emt 0:06:25]} h6 {[%emt 0:05:35]} 17. Ne4 {[%emt 0:03:11]} Na5 {[%emt 0:05:17]} 18. Rf1 {[%emt 0:04:46]} Nxb3 {[%emt 0:02:48]} 19. Qxb3 {[%emt 0:00:25]} Bc6 {[%emt 0:02:05]} 20. Qc2 {[%emt 0:03:03]} d5 {[%emt 0:01:38]} 21. Nc5 {[%emt 0:00:56]} d4 {[%emt 0:00:59]} 22. Bd2 {[%emt 0:00:47]} Rae8 {[%emt 0:04:31]} 23. Ne4 {[%emt 0:02:26]} Bxe4 {[%emt 0:02:25]} 24. dxe4 {[%emt 0:00:11]} Qd7 {[%emt 0:01:37]} 25. f3 {[%emt 0:00:56]} d3 {[%emt 0:01:25]} 26. Qb3 {[%emt 0:00:37]} Qb5 {[%emt 0:01:21]} 27. Qxb5 {[%emt 0:00:48]} axb5 {[%emt 0:00:09]} 28. Rfc1 {[%emt 0:01:17]} Rd8 {[%emt 0:02:16]} 29. c4 {[%emt 0:00:37]} bxc4 {[%emt 0:01:00]} 30. Rxc4 {[%emt 0:00:08]} Rd7 {[%emt 0:01:37]} 31. Rac1 {[%emt 0:00:45]} c6 {[%emt 0:00:55]} 32. Kf2 {[%emt 0:01:06]} Rf6 {[%emt 0:00:40]} 33. Be3 {[%emt 0:05:50]} g5 {[%emt 0:02:10]} 34. g4 {[%emt 0:01:28]} Kh7 {[%emt 0:01:12]} 35. Rd1 {[%emt 0:01:03]} Bf8 {[%emt 0:00:54]} 36. Rc3 {[%emt 0:00:40]} d2 {[%emt 0:00:25]} 37. Rxd2 {[%emt 0:00:21]} Rxd2+ {[%emt 0:00:18]} 38. Bxd2 {[%emt 0:00:06]} Rd6 {[%emt 0:00:25]} 39. Be3 {[%emt 0:00:41]} Rd1 {[%emt 0:00:22]} 40. Ke2 {[%emt 0:03:00]} Ra1 {[%emt 0:00:19]} 41. a3 {[%emt 0:00:45]} Ra2 {[%emt 0:00:12]} 42. Bc1 {[%emt 0:00:28]} c5 {[%emt 0:00:38]} 43. Rb3 {[%emt 0:00:48]} b6 {[%emt 0:00:29]} 44. Rxb6 {[%emt 0:03:29]} c4 {[%emt 0:00:12]} 45. Kd1 {[%emt 0:00:24]} Ra1 {[%emt 0:00:28]} 46. Rc6 {[%emt 0:00:45]} c3 {[%emt 0:00:39]} 47. Rxc3 {[%emt 0:00:34]} Kg7 {[%emt 0:00:27]} 48. Kc2 {[%emt 0:00:24]} Kf7 {[%emt 0:00:18]} 49. b4 {[%emt 0:00:19]} Ke6 {[%emt 0:00:39]} 50. Kb2 {[%emt 0:00:33]} Bxb4 {[%emt 0:00:26]} 51. Rc6+ {[%emt 0:00:55]} Kd7 {[%emt 0:00:35]} 52. Kxa1 {[%emt 0:00:08]} Kxc6 {[%emt 0:00:22]} 53. axb4 {[%emt 0:00:05]} Kb6 {[%emt 0:00:20]} 54. Kb2 {[%emt 0:00:08]} Kb5 {[%emt 0:00:11]} 55. Kb3 {[%emt 0:00:07]} Kc6 {[%emt 0:01:25]} 56. Kc4 {[%emt 0:00:15]} Kb6 {[%emt 0:00:11]} 57. Bb2 {[%emt 0:00:06]} Kc6 {[%emt 0:00:32]} 58. Bxe5 {[%emt 0:00:07]} Kb6 {[%emt 0:00:53]} 59. Bd4+ {[%emt 0:00:09]} Kc6 {[%emt 0:00:28]} 60. b5+ {[%emt 0:00:06]} Kc7 {[%emt 0:00:10]} 61. b6+ {[%emt 0:00:13]} Kb7 {[%emt 0:01:08]} 62. e5 {[%emt 0:00:19]} Kc6 {[%emt 0:00:10]} 63. e6 {[%emt 0:57:34]} Kb7 {[%emt 0:00:12]} 64. e7 {[%emt 0:00:00]} Ka6 {[%emt 0:00:15]} 65. e8=Q {[%emt 0:00:00]} Kb7 {[%emt 0:00:09]} 66. Qd7+ {[%emt 0:00:00]} Ka6 {[%emt 0:00:24]} 67. Qa7# {[%emt 0:00:00]} 1-0